bitfinex/quotes_ETHUSD_20260226
["timestamp","ask_amount","ask_price","bid_price","bid_amount"]
[1772083547131,1.74683604,2065.6,2065.1,0.0011]
[1772083547322,0.53648289,2065.6,2065.1,0.0011]
[1772083547924,4.84083395,2065.8,2065.1,0.0011]
[1772083547925,2.68883092,2065.9,2065.1,0.54896325]
[1772083548125,1.74658942,2066.0,2065.3,0.54786325]
[1772083549235,1.74658942,2066.0,2065.3,1.75832602]
[1772083549415,1.74658942,2066.0,2065.4,0.54786325]
[1772083549739,1.74758942,2066.0,2065.4,0.54786325]
[1772083550628,0.53648289,2065.9,2065.4,0.54786325]
[1772083551114,1.21110653,2066.0,2065.4,0.54786325]
[1772083551314,1.21110653,2066.0,2065.4,1.75826979]
[1772083551531,0.001,2066.0,2065.5,0.54786325]
[1772083553511,0.001,2066.0,2065.7,0.54786325]
[1772083553708,1.542,2066.4,2065.7,0.54786325]
[1772083554019,2.75187831,2066.4,2065.7,0.54786325]
[1772083555440,1.542,2066.4,2065.9,0.54786325]
[1772083557345,2.75183651,2066.4,2065.9,0.54786325]
[1772083558244,2.75183651,2066.4,2065.9,1.75798708]
[1772083558245,1.542,2066.4,2065.9,1.75798708]
[1772083558429,1.542,2066.4,2066.0,0.53328691]
[1772083558743,2.75183367,2066.4,2066.0,0.53328691]
[1772083559819,3.26278139,2066.4,2065.8,0.53328691]
[1772083560145,0.51094772,2066.3,2065.6,0.53328691]
[1772083561444,0.001,2066.1,2065.6,0.53328691]
[1772083561656,0.51194772,2066.1,2065.6,0.53328691]
[1772083562035,2.75183367,2066.4,2065.9,0.53328691]
[1772083562036,1.72183236,2066.4,2065.9,0.53328691]
[1772083562357,0.51094772,2066.3,2065.7,0.53328691]
[1772083563524,1.21088464,2066.4,2065.7,0.53328691]
[1772083563724,0.51094772,2066.3,2065.7,0.53328691]
[1772083564256,1.72088446,2066.3,2065.7,1.74352454]
[1772083565354,0.51094772,2066.3,2065.8,0.53328691]
[1772083565976,1.72048857,2066.9,2066.2,0.53328691]
[1772083566126,1.72048857,2066.9,2066.3,1.74317898]
[1772083567652,0.51094772,2066.9,2066.4,0.53328691]
[1772083567851,2.75552744,2067.0,2066.4,0.53328691]
[1772083569956,0.51094772,2066.9,2066.2,0.53328691]
[1772083570253,0.51094772,2066.9,2066.0,0.53328691]
[1772083570446,0.51094772,2066.9,2065.8,1.1]
[1772083570447,0.51094772,2066.9,2065.8,1.63328691]
[1772083570754,0.51094772,2066.9,2065.9,0.53328691]
[1772083572132,0.51094772,2066.7,2066.0,0.53328691]
[1772083572326,1.546,2066.6,2066.0,0.53328691]
[1772083572654,1.546,2066.6,2066.1,2.01152402]
[1772083572863,0.001,2067.0,2066.5,1.47823711]
[1772083573035,15.98294772,2067.5,2066.8,1.47823711]
[1772083573036,0.51094772,2067.5,2066.8,1.47823711]
[1772083573242,11.56913064,2067.7,2066.9,0.53328691]
[1772083573551,1.72007836,2067.7,2066.9,0.53328691]
[1772083573924,0.51094772,2067.6,2066.7,0.53328691]
[1772083574131,1.72013756,2067.5,2066.7,1.74291379]
[1772083574352,1.72013756,2067.5,2066.8,0.53328691]
[1772083575057,1.20918984,2067.5,2066.8,0.53328691]
[1772083575269,1.20916199,2067.6,2066.8,0.53328691]
[1772083576167,1.20916199,2067.6,2067.0,0.53328691]
[1772083577457,1.72010971,2067.6,2066.8,3.2210776]
[1772083577631,1.72010971,2067.6,2066.9,0.53328691]
[1772083578922,1.72010971,2067.6,2067.0,1.74276925]
[1772083579074,1.72010971,2067.6,2067.0,0.53328691]
[1772083580254,0.51094772,2067.5,2066.7,3.22117007]
[1772083580666,0.51094772,2067.5,2066.8,0.53328691]
[1772083581255,1.20924833,2067.4,2066.8,0.53328691]
[1772083581564,1.72019605,2067.4,2066.8,1.74288419]
[1772083581982,0.51094772,2067.4,2066.8,1.74288419]
[1772083582458,1.20923209,2067.5,2066.9,0.53328691]
[1772083582655,0.51094772,2067.5,2066.9,0.53328691]
[1772083583063,0.001,2068.3,2067.4,0.53328691]
[1772083583242,0.001,2068.3,2067.0,1.47823711]
[1772083583243,0.001,2068.3,2068.0,1.47823711]
[1772083583448,0.001,2068.3,2067.9,0.53328691]
[1772083583750,0.001,2068.3,2067.6,3.220653]
[1772083583953,0.001,2068.3,2067.7,0.53328691]
[1772083584552,1.548,2068.8,2068.1,0.53328691]
[1772083585060,1.548,2068.8,2068.3,1.47823711]
[1772083585379,2.75643154,2068.8,2068.3,1.47823711]
[1772083585752,1.548,2068.8,2068.3,2.68695696]
[1772083586274,1.548,2068.8,2068.3,3.19571593]
[1772083586476,1.548,2068.8,2068.3,1.98699608]
[1772083587046,1.548,2068.8,2068.3,3.19571458]
[1772083587247,1.548,2068.8,2068.4,0.50875897]
[1772083588172,1.548,2068.8,2068.4,1.7174088]
[1772083588376,1.548,2068.8,2068.5,0.50875897]
[1772083589272,1.548,2068.8,2068.4,1.20864983]
[1772083589273,1.545,2069.2,2068.8,0.50875897]
[1772083589472,1.70479583,2069.0,2068.3,0.50875897]
[1772083589854,0.49648264,2069.0,2068.3,0.50875897]
[1772083590251,0.49648264,2069.0,2068.1,5.7824544]
[1772083591347,0.49648264,2069.0,2068.2,0.50875897]
[1772083591558,0.49648264,2068.9,2068.3,0.50875897]
[1772083591758,0.49648264,2068.9,2068.1,4.57364862]
[1772083591983,0.49648264,2068.9,2068.1,1.47823711]
[1772083592283,0.49648264,2068.9,2068.1,2.68707394]
[1772083592464,0.49648264,2068.9,2068.1,3.19583291]
[1772083593475,0.49648264,2068.9,2068.2,0.53008545]
[1772083593684,1.7345991,2068.8,2068.2,0.53008545]
[1772083593848,1.545,2068.7,2068.1,1.47823711]
[1772083594048,2.0711691,2068.7,2068.1,1.47823711]
[1772083594265,0.5261691,2068.6,2067.7,1.73911838]
[1772083594464,0.5261691,2068.6,2067.7,0.53008545]
[1772083594680,0.5261691,2068.6,2067.6,1.47823711]
[1772083595885,0.5261691,2068.6,2067.2,2.58665254]
[1772083595886,0.5261691,2068.4,2067.3,0.53008545]
[1772083596183,0.5261691,2068.4,2067.3,1.73938712]
[1772083597581,0.5261691,2068.4,2067.3,3.21762423]
[1772083598284,0.5261691,2068.2,2067.3,3.21762423]
[1772083598466,2.0681691,2068.1,2067.3,3.21762423]
[1772083598665,0.5261691,2068.0,2067.1,1.7405863]
[1772083598861,0.5261691,2068.0,2067.2,0.53008545]
[1772083599783,0.5261691,2068.0,2067.5,0.001]
[1772083600366,1.20895594,2067.9,2067.5,0.001]
[1772083600885,1.73512504,2067.9,2067.5,0.001]
[1772083601088,0.5261691,2067.8,2067.3,0.001]
[1772083602484,1.20907288,2067.7,2067.3,0.001]
[1772083602681,0.5261691,2067.8,2067.3,0.001]
[1772083602682,1.542,2067.6,2067.3,0.001]
[1772083603372,1.20899253,2067.9,2067.3,0.001]
[1772083603578,1.542,2067.8,2067.3,0.53108545]
[1772083603786,1.542,2067.8,2067.4,0.53008545]
[1772083604359,1.541,2067.9,2067.6,1.47823711]
[1772083605896,4.8364238,2068.5,2067.7,0.53008545]
[1772083605897,1.54,2068.1,2067.7,0.53008545]
[1772083607191,1.54,2068.1,2067.6,1.47823711]
[1772083607389,1.54,2068.1,2067.7,0.53008545]
[1772083607795,1.54,2068.1,2067.6,1.47823711]
[1772083608169,1.54,2068.1,2067.7,0.53008545]
[1772083608567,1.54,2068.1,2067.8,1.73909986]
[1772083608860,1.54,2068.1,2067.8,0.53008545]
[1772083609089,0.5261691,2068.9,2068.2,4.96479678]
[1772083609290,1.54,2069.0,2068.3,0.53008545]
[1772083609594,2.7483138,2069.0,2068.3,0.53008545]
[1772083609798,0.5261691,2068.9,2068.0,0.53008545]
[1772083610464,0.5261691,2068.9,2068.3,1.20872213]
[1772083611290,1.73454494,2068.9,2068.3,1.20872213]
[1772083611662,1.73454494,2068.9,2068.2,0.53008545]
[1772083611898,0.5261691,2068.8,2067.9,1.73898827]
[1772083612099,1.20837584,2068.9,2068.2,0.53008545]
[1772083612602,1.73454494,2068.9,2068.2,1.73885204]
[1772083613213,0.5261691,2068.8,2068.2,1.73885204]
[1772083613415,0.5261691,2068.8,2068.2,0.53008545]
[1772083613616,0.5261691,2068.8,2068.0,4.83542402]
[1772083613617,0.5261691,2068.8,2068.0,0.53108545]
[1772083613926,0.5281691,2068.7,2068.0,0.001]
[1772083614082,0.4781691,2068.7,2068.0,0.001]
[1772083614705,0.5261691,2068.5,2068.0,0.001]
[1772083614905,0.5261691,2068.3,2068.0,0.001]
[1772083617145,1.539,2068.4,2068.0,0.001]
[1772083617414,3.27871724,2068.4,2068.0,0.001]
[1772083618616,1.539,2068.4,2068.0,0.001]
[1772083618789,1.539,2068.4,2068.0,0.53190809]
[1772083619116,1.539,2068.4,2068.1,0.53090809]
[1772083619488,1.539,2068.4,2068.0,2.68811568]
[1772083620230,1.539,2068.4,2068.1,0.53090809]
[1772083621034,2.74768058,2068.4,2068.0,0.001]
[1772083621221,1.539,2068.4,2068.0,0.53190809]
[1772083621400,2.74766543,2068.4,2068.0,0.001]
[1772083621596,1.539,2068.4,2068.0,1.20989312]
[1772083621802,1.539,2068.4,2068.0,0.001]
[1772083622338,0.53104305,2068.3,2067.8,0.001]
[1772083622930,0.53104305,2068.3,2067.4,0.53090809]
[1772083623400,0.53104305,2068.1,2067.3,0.001]
[1772083623729,0.48104305,2068.1,2067.3,0.001]
[1772083626038,0.53104305,2067.9,2067.3,0.001]
[1772083626213,1.539,2067.8,2067.3,0.001]
[1772083627326,1.539,2067.8,2067.5,0.0011]
[1772083627994,1.20907288,2067.7,2067.5,0.0011]
[1772083633536,0.53104305,2067.6,2067.3,0.001]
[1772083634943,1.20907288,2067.7,2067.3,0.001]
[1772083635631,3.27910124,2067.8,2067.3,0.53190809]
[1772083636008,1.539,2067.8,2067.3,0.53190809]
[1772083637011,3.27905898,2067.8,2067.3,0.53190809]
[1772083638019,3.27905898,2067.8,2067.4,0.53090809]
[1772083638020,1.539,2067.8,2067.4,0.53090809]
[1772083639932,1.539,2067.8,2067.4,1.74015513]
[1772083640109,1.00549381,2067.8,2067.5,0.53090809]
[1772083641012,1.00549381,2067.8,2067.3,1.74117711]
[1772083641223,1.00549381,2067.8,2067.5,0.001]
[1772083641443,1.53653686,2067.8,2067.5,0.001]
[1772083642105,2.74555223,2067.8,2067.5,0.001]
[1772083642540,0.53104305,2067.7,2067.5,0.001]
[1772083643139,1.20913136,2067.6,2067.3,0.001]
[1772083643343,1.74017441,2067.6,2067.3,0.001]
[1772083646146,4.83805764,2068.1,2067.3,0.001]
[1772083646147,0.48492338,2069.7,2067.6,0.52286799]
[1772083646475,2.63681375,2070.0,2068.4,0.52286799]
[1772083646476,0.48492338,2069.2,2068.4,0.52286799]
[1772083648223,1.69313414,2069.2,2068.5,1.20860526]
[1772083651339,1.69313414,2069.2,2068.5,1.73147325]
[1772083654858,1.78763269,2069.3,2068.6,0.49046636]
[1772083655450,0.001,2069.0,2068.6,0.49046636]
[1772083655631,1.55,2068.9,2068.6,0.49046636]
[1772083656661,1.55,2068.9,2068.6,1.69897891]
[1772083657164,1.549,2068.8,2068.7,0.49046636]
[1772083657543,1.55,2069.0,2068.7,0.49046636]
[1772083658840,1.55,2069.0,2068.5,0.49046636]
[1772083659862,3.25747032,2069.0,2068.5,0.49046636]
[1772083660366,3.25748119,2069.0,2068.5,0.49046636]
[1772083660768,0.49915503,2068.9,2068.1,0.49046636]
[1772083660942,0.49915503,2068.9,2068.0,2.30889748]
[1772083661444,0.49915503,2068.9,2067.9,0.49046636]
[1772083661658,0.49915503,2068.9,2067.9,1.69941747]
[1772083662240,0.49915503,2068.9,2067.8,1.20899196]
[1772083662761,0.49915503,2068.9,2067.8,1.69945832]
[1772083664567,0.49915503,2068.7,2067.9,0.49046636]
[1772083665842,0.49915503,2068.7,2067.7,0.49046636]
[1772083666870,0.49915503,2068.7,2067.7,1.69948325]
[1772083666871,0.49915503,2068.5,2067.7,1.69948325]
[1772083667076,2.04615503,2068.4,2067.7,1.69948325]
[1772083667238,0.49915503,2068.3,2067.7,1.69948325]
[1772083667562,0.49915503,2068.3,2068.1,0.001]
[1772083668874,0.49915503,2068.2,2067.9,0.001]
[1772083670648,1.20872006,2068.4,2067.9,0.001]
[1772083670855,2.75773135,2068.3,2067.9,0.001]
[1772083671049,1.549,2068.3,2067.9,0.49146636]
[1772083671580,2.75772854,2068.3,2067.9,0.49146636]
[1772083671746,1.549,2068.3,2067.9,0.49146636]
[1772083673675,1.549,2068.3,2068.0,1.69936384]
[1772083673840,2.75753257,2068.7,2068.1,0.49046636]
[1772083674041,0.50079543,2068.6,2067.9,1.20991136]
[1772083674375,0.50079543,2068.9,2068.0,0.04814017]
[1772083674667,2.04979543,2068.9,2068.2,0.04814017]
[1772083675462,0.50079543,2068.8,2068.0,0.04815835]
[1772083675846,0.51609528,2068.6,2068.0,1.25704101]
[1772083676048,0.51609528,2068.6,2068.0,0.04815835]
[1772083676381,0.51609528,2068.6,2068.0,1.25704691]
[1772083678657,1.72464377,2068.6,2068.0,0.04815835]
[1772083678863,0.51609528,2068.5,2067.9,0.001]
[1772083679174,0.51609528,2068.5,2067.9,1.25586646]
[1772083680368,1.72472223,2068.5,2067.9,1.25586646]
[1772083680578,0.51609528,2068.5,2068.0,0.04482679]
[1772083680787,0.51609528,2068.5,2067.9,0.001]
[1772083681089,1.20858359,2068.6,2067.9,0.001]
[1772083681090,0.51609528,2068.3,2067.9,0.001]
[1772083682071,0.51609528,2068.3,2068.1,0.001]
[1772083682281,1.20878058,2068.2,2067.9,0.001]
[1772083682466,0.51609528,2068.1,2067.6,0.0011]
[1772083684664,1.72499276,2068.0,2067.6,0.0011]
[1772083684973,0.51609528,2067.9,2067.6,0.0011]
[1772083686259,1.72495733,2068.1,2067.6,0.0011]
[1772083686773,0.002,2068.3,2067.6,0.04381834]
[1772083686774,1.72685793,2068.3,2067.6,0.04381834]
[1772083686963,0.51609528,2068.2,2067.6,0.04381834]
[1772083687783,0.51609528,2068.2,2067.6,0.0011]
[1772083689185,1.72493431,2068.1,2067.6,0.0011]
[1772083689768,0.51609528,2068.0,2067.6,0.0011]
[1772083690574,1.20883903,2068.1,2067.6,0.04186256]
[1772083691170,1.72491263,2068.2,2067.6,2.72645237]
[1772083691684,0.51609528,2068.2,2067.7,0.04028758]
[1772083692191,1.2107312,2068.3,2067.7,0.04028758]
[1772083693280,0.002,2068.3,2067.8,0.03935391]
[1772083694163,0.51609528,2068.2,2067.6,1.51593144]
[1772083694366,1.20870602,2068.4,2067.7,0.03889511]
[1772083694562,0.51609528,2069.9,2068.9,0.03889511]
[1772083694965,0.51609528,2069.8,2068.6,0.49997906]
[1772083695274,0.51609528,2069.6,2068.3,1.47547753]
[1772083695473,0.51609528,2069.4,2068.4,0.49997906]
[1772083696774,0.002,2068.5,2068.4,0.49997906]
[1772083696993,0.51609528,2069.3,2068.4,0.49997906]
[1772083697476,1.2081964,2069.2,2068.5,1.20860526]
[1772083698167,1.2081964,2069.2,2068.5,1.70858432]
[1772083698372,1.2081964,2069.2,2068.5,1.20860526]
[1772083698598,1.72427761,2069.3,2068.6,0.49997906]
[1772083699775,4.83252441,2069.4,2068.6,1.70850916]
[1772083699975,5.34861969,2069.4,2068.6,1.70850916]
[1772083700175,0.51609528,2069.3,2068.6,1.70850916]
[1772083702185,1.72427441,2069.3,2068.6,1.70850916]
[1772083702698,0.51609528,2069.2,2068.6,1.70850916]
[1772083702901,0.51609528,2069.2,2068.4,1.70859835]
[1772083703289,0.51609528,2069.2,2068.5,0.49997906]
[1772083704505,0.51609528,2069.1,2068.5,0.49997906]
[1772083704900,0.51609528,2069.1,2068.5,1.70857956]
[1772083705307,0.51609528,2069.1,2068.5,0.49997906]
[1772083705888,0.51609528,2069.1,2068.5,1.70857894]
[1772083706305,0.51609528,2069.1,2068.4,1.20862141]
[1772083706600,0.51609528,2069.1,2068.5,0.48119808]
[1772083706601,0.47068014,2069.0,2068.5,0.48119808]
[1772083708311,0.47068014,2069.0,2068.6,0.001]
[1772083708807,1.67900065,2069.0,2068.6,0.001]
[1772083709190,0.47068014,2069.0,2068.6,0.001]
[1772083709702,1.67899367,2069.0,2068.6,0.001]
[1772083710194,0.47068014,2069.0,2068.6,0.001]
[1772083713815,1.67899428,2069.0,2068.6,0.001]
[1772083714054,1.67899428,2069.0,2068.6,0.48400155]
[1772083714985,0.47068014,2069.0,2068.6,0.48400155]
[1772083715186,0.002,2069.1,2068.7,0.29480541]
[1772083715411,0.002,2069.1,2068.6,0.48400155]
[1772083715986,0.002,2069.1,2068.8,0.48300155]
[1772083716791,0.002,2069.1,2069.0,5.503]
[1772083720120,0.002,2069.1,2069.0,5.24537547]
[1772083721200,0.49661678,2069.1,2069.0,5.24537547]
[1772083722103,2.75604665,2069.5,2069.0,6.45368866]
[1772083722300,2.75604665,2069.5,2069.0,5.72837702]
[1772083722301,3.25066343,2069.5,2069.0,5.72837702]
[1772083722725,0.49461678,2069.4,2069.2,5.24537547]
[1772083722927,1.548,2069.5,2069.2,5.24537547]
[1772083723101,1.548,2069.5,2069.2,6.45356279]
[1772083723304,0.49461678,2069.6,2069.2,6.93656434]
[1772083723806,0.49461678,2069.6,2069.2,5.72837702]
[1772083724213,0.49461678,2069.5,2069.2,4.7315755]
[1772083724600,0.49461678,2069.5,2068.8,1.217]
[1772083724821,0.49461678,2069.3,2068.7,0.001]
[1772083725342,0.49461678,2069.1,2068.7,0.001]
[1772083726121,0.49461678,2068.9,2068.5,0.001]
[1772083727466,1.70304678,2068.8,2068.5,0.001]
[1772083729727,1.20843,2068.8,2068.5,0.001]
[1772083730142,1.20843,2068.8,2068.5,0.48400155]
[1772083731053,5.32820529,2068.9,2068.5,0.001]
[1772083732164,0.49461678,2068.8,2068.2,0.001]
[1772083733448,1.20847341,2068.8,2068.2,0.48400155]
[1772083735078,1.20841708,2068.9,2068.2,0.48400155]
[1772083735931,1.20841708,2068.9,2068.3,0.46244566]
[1772083736131,0.50605002,2068.8,2068.3,0.46244566]
[1772083736332,0.50605002,2068.8,2068.4,0.001]
[1772083736738,0.002,2068.6,2068.4,0.001]
[1772083737259,0.50805002,2068.6,2068.4,0.001]
[1772083737433,0.50605002,2068.5,2068.2,0.001]
[1772083738455,1.71471293,2068.5,2068.2,0.001]
[1772083739562,0.50605002,2068.4,2068.2,0.001]
[1772083740664,1.20872213,2068.3,2068.2,0.001]
[1772083740964,1.71477215,2068.3,2068.2,0.001]
[1772083741338,1.20870958,2068.4,2068.2,0.001]
[1772083744045,1.563,2068.3,2068.2,0.001]
[1772083744466,1.21059354,2068.6,2068.2,0.001]
[1772083744764,1.05108482,2068.4,2068.3,0.75743433]
[1772083745148,1.21055288,2068.6,2068.3,0.75743433]
[1772083745351,1.21055288,2068.6,2068.3,0.46244566]
[1772083745352,0.002,2068.6,2068.3,0.46244566]
[1772083747457,0.50805002,2068.6,2068.2,0.001]
[1772083747972,0.50805002,2068.6,2068.2,0.46344566]
[1772083750368,1.7166347,2068.6,2068.2,0.001]
[1772083750571,1.7166347,2068.6,2068.2,0.46344566]
[1772083750776,1.21058468,2068.6,2068.4,0.001]
[1772083754050,0.002,2068.6,2068.4,0.001]
[1772083756366,0.002,2068.6,2068.4,0.46344566]
[1772083758975,1.20839452,2068.9,2068.5,0.46244566]
[1772083759178,0.50605002,2068.9,2068.4,0.001]
[1772083759961,0.50605002,2068.7,2068.4,0.001]
[1772083760187,0.50605002,2068.5,2068.2,0.001]
[1772083762898,0.50605002,2068.3,2068.2,0.001]
[1772083763275,0.50605002,2068.3,2067.9,0.001]
[1772083764100,0.50605002,2068.3,2068.1,0.001]
[1772083764964,0.50605002,2068.2,2068.1,0.001]
[1772083768964,2.78272275,2068.3,2068.1,0.001]
[1772083768965,1.574,2068.3,2068.1,0.001]
[1772083770004,2.78272495,2068.3,2068.1,0.001]
[1772083771301,1.574,2068.3,2068.1,0.001]
[1772083772601,3.25141078,2068.3,2068.1,0.001]
[1772083772895,0.46868463,2068.2,2068.1,0.001]
[1772083774496,0.46868463,2068.2,2067.9,0.001]
[1772083775102,1.20883903,2068.1,2067.9,0.001]
[1772083775395,0.46679794,2068.0,2067.9,0.001]
[1772083776903,1.67562393,2068.2,2067.9,0.001]
[1772083777103,3.24955876,2068.3,2067.9,0.4721352]
[1772083780078,2.78276082,2068.3,2067.9,0.4721352]
[1772083780618,3.24955876,2068.3,2067.9,0.4721352]
[1772083783306,2.78276082,2068.3,2067.9,0.4721352]
[1772083783504,0.46679794,2068.2,2067.9,0.4721352]
[1772083783809,0.46679794,2068.2,2067.9,0.001]
[1772083784491,1.20883903,2068.1,2067.9,0.001]
[1772083784692,0.46679794,2068.0,2067.8,0.001]
[1772083785405,0.46679794,2067.9,2067.8,0.001]
[1772083786289,1.587,2068.0,2067.8,0.001]
[1772083786473,2.05379794,2068.0,2067.8,0.001]
[1772083787999,1.589,2068.0,2067.8,0.001]
[1772083792809,1.67587082,2067.7,2067.6,0.0011]
[1772083794698,0.46679794,2067.6,2067.3,0.001]
[1772083794898,0.46679794,2067.4,2067.0,0.0011]
[1772083795107,0.46679794,2067.3,2067.1,0.0022]
[1772083796411,0.46679794,2067.3,2067.1,0.0011]
[1772083797212,1.20931674,2067.3,2067.1,0.0011]
[1772083797413,2.80329129,2067.4,2067.1,0.0011]
[1772083797595,2.80329129,2067.4,2067.1,0.0022]
[1772083797917,3.2816787,2067.4,2067.1,0.0022]
[1772083798991,3.2816787,2067.4,2067.1,0.0011]
[1772083799197,3.28164029,2067.4,2067.1,0.0011]
[1772083799797,2.07238741,2067.4,2067.1,0.0011]
[1772083800001,3.28163597,2067.4,2067.1,0.0011]
[1772083800500,2.80324856,2067.4,2067.1,0.50586999]
[1772083800903,3.28163597,2067.4,2067.1,0.50586999]
[1772083801218,3.28163597,2067.4,2067.3,0.001]
[1772083802221,0.47838741,2067.3,2066.8,0.001]
[1772083802525,0.47838741,2067.1,2066.8,0.001]
[1772083802726,2.07838741,2067.0,2066.8,0.001]
[1772083803222,0.47838741,2066.9,2066.8,0.001]
[1772083803426,2.80951245,2067.0,2066.8,0.001]
[1772083803427,1.6,2067.0,2066.8,0.001]
[1772083803591,1.6,2067.0,2066.8,0.50576999]
[1772083804527,2.80948941,2067.0,2066.8,0.50576999]
[1772083804724,1.6,2067.0,2066.8,0.50576999]
[1772083805601,1.6,2067.0,2066.8,0.001]
[1772083805797,1.20947686,2067.1,2066.8,0.50576999]
[1772083806098,3.2887294,2067.3,2066.8,0.50576999]
[1772083807422,0.47838741,2067.2,2066.8,0.001]
[1772083808238,0.47838741,2067.2,2066.6,0.50586999]
[1772083808239,0.77376027,2067.0,2066.4,0.50476999]
[1772083808407,0.29537286,2066.8,2066.4,0.50476999]
[1772083808740,1.602,2066.8,2066.4,0.50476999]
[1772083808902,1.602,2066.8,2066.5,0.50476999]
[1772083809107,1.602,2067.1,2066.7,0.50476999]
[1772083809330,1.602,2067.4,2066.9,0.50476999]
[1772083809530,1.602,2067.4,2067.1,0.50476999]
[1772083809831,1.2090957,2067.7,2067.1,0.50476999]
[1772083810602,0.29537286,2067.5,2067.1,0.50476999]
[1772083810807,0.29537286,2067.5,2066.9,0.50476999]
[1772083811332,0.47838741,2067.6,2066.9,0.50476999]
[1772083811831,5.31653847,2067.8,2067.0,0.50476999]
[1772083812431,0.47838741,2067.7,2067.0,0.50476999]
[1772083813502,0.47838741,2067.6,2066.8,0.50476999]
[1772083813699,2.08038741,2067.5,2066.8,0.50476999]
[1772083813900,1.20930682,2067.3,2067.0,0.0011]
[1772083814337,0.47838741,2067.2,2066.6,0.50476999]
[1772083814506,0.47838741,2067.2,2066.8,0.0011]
[1772083815628,0.47838741,2067.0,2066.8,0.0011]
[1772083815817,0.47838741,2067.0,2066.5,0.0011]
[1772083816220,1.68792826,2066.9,2066.5,0.0011]
[1772083817014,0.47838741,2066.9,2066.5,0.0011]
[1772083817216,1.20952154,2067.0,2066.5,0.50586999]
[1772083817632,3.28984643,2067.1,2066.5,0.50586999]
[1772083817810,1.602,2067.1,2066.5,0.50586999]
[1772083818233,1.602,2067.1,2066.7,0.50476999]
[1772083818405,2.81328055,2067.4,2066.7,0.50476999]
[1772083820006,3.29166796,2067.4,2066.7,0.50476999]
[1772083823113,3.29166796,2067.4,2066.8,0.50476999]
[1772083825611,2.81324888,2067.4,2066.9,0.50476999]
[1772083826421,2.81324888,2067.4,2066.9,0.50586999]
[1772083826745,0.001,2067.2,2066.9,0.50586999]
[1772083829822,0.001,2067.2,2066.9,1.71540924]
[1772083830228,0.001,2067.2,2067.0,0.48411832]
[1772083835854,1.604,2067.4,2067.1,0.46898308]
[1772083836863,0.001,2067.4,2067.2,0.46898308]
[1772083838867,0.001,2067.4,2067.3,0.46898308]
[1772083841053,0.002,2067.8,2067.4,0.46898308]
[1772083841275,1.2110179,2067.8,2067.4,0.46898308]
[1772083841704,1.70426355,2067.8,2067.4,0.46898308]
[1772083842083,0.002,2067.8,2067.6,0.46898308]
[1772083845585,0.49524565,2067.8,2067.4,0.46898308]
[1772083845784,0.49324565,2067.6,2067.2,0.46898308]
[1772083846691,0.49324565,2067.6,2067.0,3.17168262]
[1772083846855,0.49324565,2067.4,2067.0,0.001]
[1772083851496,0.49324565,2067.4,2067.2,0.0011]
[1772083851701,0.001,2067.3,2067.2,0.0011]
[1772083852188,6.44515723,2067.8,2067.3,0.46898308]
[1772083852189,0.002,2067.8,2067.3,0.46898308]
[1772083852501,0.49524565,2067.8,2067.3,0.46898308]
[1772083853809,0.49524565,2067.8,2067.3,1.67824748]
[1772083854181,0.002,2067.8,2067.5,0.46898308]
[1772083855111,0.002,2067.8,2067.4,0.76421491]
[1772083855975,0.002,2067.8,2067.4,1.97345031]
[1772083856180,0.002,2067.8,2067.4,1.67821848]
[1772083857307,0.501176,2067.8,2067.2,0.47283246]
[1772083857488,0.501176,2067.8,2067.2,1.68215177]
[1772083857690,0.501176,2067.8,2067.2,0.0011]
[1772083858779,0.499176,2067.7,2067.2,0.0011]
[1772083858990,0.499176,2067.7,2067.2,0.47283246]
[1772083859193,0.499176,2067.7,2067.2,0.76806429]
[1772083860913,0.499176,2067.5,2067.2,0.0011]
[1772083861120,0.499176,2067.3,2067.0,0.001]
[1772083862088,0.499176,2067.1,2066.8,0.001]
[1772083862890,0.499176,2066.9,2066.8,0.001]
[1772083863089,0.499176,2066.9,2066.6,0.0011]
[1772083863306,1.20946757,2067.1,2066.6,0.0011]
[1772083863307,0.499176,2066.7,2066.6,0.0011]
[1772083864784,1.7086009,2067.1,2066.6,0.0011]
[1772083864987,0.499176,2067.0,2066.6,0.0011]
[1772083866913,1.70866255,2067.0,2066.6,0.0011]
[1772083867907,0.499176,2067.0,2066.6,0.0011]
[1772083868212,1.70866346,2067.0,2066.6,0.0011]
[1772083869214,0.499176,2066.9,2066.6,0.0011]
[1772083870500,0.499176,2067.1,2066.6,0.0011]
[1772083871115,1.70865834,2067.0,2066.6,0.0011]
[1772083871321,0.499176,2066.9,2066.6,0.0011]
[1772083873129,0.499176,2066.9,2066.4,0.0011]
[1772083873130,0.499176,2066.5,2066.4,0.0011]
[1772083874693,0.499176,2066.5,2065.9,0.0011]
[1772083874905,0.499176,2066.3,2065.9,0.0011]
[1772083875111,0.499176,2066.3,2065.9,0.47283246]
[1772083875112,1.20989207,2066.3,2065.9,0.47283246]
[1772083875527,1.20989207,2066.3,2065.9,0.0011]
[1772083875528,0.499176,2066.2,2065.9,0.0011]
[1772083877633,0.499176,2066.0,2065.9,0.0011]
[1772083877828,0.499176,2066.0,2065.6,0.0011]
[1772083878355,0.499176,2065.9,2065.4,0.0011]
[1772083879715,1.70936091,2065.8,2065.4,0.0011]
[1772083881616,0.499176,2065.7,2065.4,0.0011]
[1772083881843,1.70947027,2065.7,2065.4,0.0011]
[1772083883146,0.499176,2065.5,2065.1,0.0011]
[1772083883334,0.499176,2065.4,2065.1,0.0011]
[1772083883533,0.499176,2065.4,2064.3,0.47173246]
[1772083883844,1.70982975,2065.0,2064.4,0.47173246]
[1772083884048,0.499176,2064.9,2064.4,0.47173246]
[1772083885029,0.499176,2064.9,2064.4,1.68273371]
[1772083885631,0.499176,2064.9,2064.4,0.47173246]
[1772083886778,6.45245831,2065.1,2064.4,0.47173246]
[1772083886779,0.48623364,2065.1,2064.5,0.47578952]
[1772083886932,2.09623364,2065.1,2064.5,0.47578952]
[1772083887328,0.48623364,2065.0,2064.3,1.68681401]
[1772083887529,0.48623364,2065.0,2064.3,0.47578952]
[1772083887732,0.48623364,2065.0,2064.3,1.68684673]
[1772083888231,1.21071238,2064.9,2064.4,0.47578952]
[1772083888418,1.69694602,2064.9,2064.4,0.47578952]
[1772083888621,0.48623364,2065.8,2064.8,0.47578952]